fUST/lending_fUST_20240607
["ID","MTS","AMOUNT","RATE_DAILY","PERIOD"]
[328722330,1717730120856,2641.73909648,9.999e-05,2]
[328722331,1717730254101,372.50592829,9.999e-05,2]
[328722332,1717730539646,10000.0,0.00023,30]
[328722333,1717730568731,8000.0,0.00022,10]
[328722334,1717730581020,2048.0,0.00022,10]
[328722335,1717730848159,-154.93802479,0.00014964,2]
[328722336,1717730848180,-154.93802479,0.00014964,2]
[328722337,1717730848201,-185.30449836,0.00014965,2]
[328722338,1717730848222,-187.30405388,0.00014966,2]
[328722339,1717730848244,-2036.10483651,0.00014966,2]
[328722340,1717730848266,-1542.84514808,0.00014998,2]
[328722341,1717730946095,-3592.11157932,0.00014998,2]
[328722342,1717730946117,-2225.67937256,0.00014999,2]
[328722343,1717730946137,-945.46842875,0.00015,2]
[328722344,1717730946160,-2812.99414958,0.00015,2]
[328722345,1717730946181,-190.4326803,0.000156,2]
[328722346,1717730946202,-250.0,0.0001727,2]
[328722347,1717730946223,-359.898079,0.00017346,2]
[328722348,1717730946243,-876.5803214,0.00017372,2]
[328722349,1717730946263,-2763.22163269,0.0001826,2]
[328722350,1717730946284,-632.52095723,0.00018261,2]
[328722351,1717730946303,-199.2244375,0.00018262,2]
[328722352,1717730946323,-204.02091726,0.00018544,2]
[328722353,1717730946342,-163.02245069,0.00019,2]
[328722354,1717730946363,-167.46533,0.00019178,2]
[328722355,1717730946382,-4575.224987,0.00019388,2]
[328722356,1717730946401,-452.93566317,0.0002,2]
[328722357,1717730946421,-1354.67102739,0.00020899,2]
[328722358,1717730946440,-254.64446198,0.000209,2]
[328722359,1717730946460,-1035.88327881,0.0002129,2]
[328722360,1717730946480,-3000.0,0.000215,2]
[328722361,1717730946500,-3000.0,0.0002151,2]
[328722362,1717730946519,-166.711734,0.00021918,2]
[328722363,1717730947249,166.711734,0.00021918,2]
[328722364,1717730963016,295.0,0.00028,120]
[328722395,1717731032820,-185.30449836,0.00022558,2]
[328722397,1717731032830,-152.63332083,0.00022559,2]
[328722546,1717731039059,-14.07841317,0.00022559,2]
[328722548,1717731039070,-151.14342879,0.0002256,2]
[328722550,1717731039080,-632.52095723,0.00023198,2]
[328722552,1717731039090,-163.02245069,0.00023198,2]
[328722554,1717731039100,-154.93802479,0.00023199,2]
[328722556,1717731039111,-166.711734,0.000232,2]
[328722558,1717731039121,-713.29566107,0.00023422,2]
[328722560,1717731039134,-210.08133374,0.00023422,2]
[328722562,1717731039144,-166.711734,0.00023841,2]
[328722564,1717731039155,-1628.240644,0.000241,2]
[328722566,1717731039166,-4236.94913646,0.00024293,2]
[328722568,1717731039176,-2080.45548354,0.00024347,2]
[328722570,1717731039186,-1000.0,0.00024393,2]
[328722572,1717731039196,-1000.0,0.00024397,2]
[328722574,1717731039207,-1000.0,0.00024397,2]
[328722576,1717731039217,-2080.45548354,0.00024399,2]
[328722578,1717731039226,-1000.0,0.00024401,2]
[328722580,1717731039236,-281.28475561,0.00024422,2]
[328722582,1717731039245,-1000.0,0.00024432,2]
[328722584,1717731039255,-1000.0,0.00024437,2]
[328722586,1717731039264,-1000.0,0.00024447,2]
[328722588,1717731039274,-151.0,0.00024447,2]
[328722590,1717731039285,-221.203048,0.00024447,2]
[328722592,1717731039295,-221.203048,0.00024447,2]
[328722594,1717731039306,-176.233763,0.00024447,2]
[328722596,1717731039317,-151.0,0.00024447,2]
[328722598,1717731039326,-1000.0,0.00024449,2]
[328722600,1717731039336,-2080.45548354,0.00024452,2]
[328722603,1717731039346,-1000.0,0.00024478,2]
[328722605,1717731039356,-997.34144679,0.00024479,2]
[328722606,1717731039366,-1000.0,0.00024481,2]
[328722609,1717731039375,-1000.0,0.00024482,2]
[328722610,1717731039385,-597.45249982,0.00024489,2]
[328722612,1717731039394,-166.666666,0.00024493,2]
[328722614,1717731039405,-2080.45548354,0.00024504,2]
[328722617,1717731039415,-153.423864,0.00024504,2]
[328722619,1717731039425,-221.203048,0.00024504,2]
[328722621,1717731039435,-221.203048,0.00024504,2]
[328722622,1717731039444,-1000.0,0.00024522,2]
[328722624,1717731039454,-1000.0,0.00024528,2]
[328722626,1717731039464,-1000.0,0.00024543,2]
[328722628,1717731039473,-1000.0,0.00024549,2]
[328722631,1717731039484,-2080.45548354,0.00024556,2]
[328722633,1717731039493,-30771.39424668,0.00024557,3]
[328722634,1717731039503,-1826.56268701,0.00024557,2]
[328722636,1717731039513,-1000.0,0.00024557,2]
[328722638,1717731039524,-151.0,0.00024557,2]
[328722640,1717731039534,-151.0,0.00024557,2]
[328722642,1717731039544,-297.551333,0.00024557,2]
[328722644,1717731039554,-221.203048,0.00024557,2]
[328722646,1717731039564,-221.203048,0.00024557,2]
[328722648,1717731039574,-1000.0,0.00024597,2]
[328722650,1717731039585,-270.0,0.000246,2]
[328722652,1717731039594,-1000.0,0.000246,2]
[328722654,1717731039605,-1000.0,0.00024606,2]
[328722656,1717731039615,-216.47,0.00024616,3]
[328722658,1717731039625,-262.86,0.00024616,3]
[328722660,1717731039636,-788.61,0.00024616,3]
[328722662,1717731039645,-301.29741845,0.0002462,2]
[328722664,1717731039655,-414.52474663,0.00024625,2]
[328722666,1717731039667,-482.5991136,0.00024625,2]
[328722668,1717731039678,-459.73673583,0.00024625,2]
[328722670,1717731039688,-404.04779436,0.00024625,2]
[328722672,1717731039698,-425.61875084,0.00024625,2]
[328722674,1717731039709,-500.0,0.00024625,2]
[328722676,1717731039720,-500.0,0.00024625,2]
[328722678,1717731039731,-500.0,0.00024625,2]
[328722680,1717731039744,-505.63783242,0.00024625,2]
[328722682,1717731039754,-500.0,0.00024625,2]
[328722684,1717731039765,-500.0,0.00024625,2]
[328722686,1717731039777,-500.0,0.00024625,2]
[328722688,1717731039788,-500.0,0.00024625,2]
[328722690,1717731039798,-500.0,0.00024625,2]
[328722692,1717731039808,-510.39354422,0.00024625,2]
[328722694,1717731039818,-234.95364001,0.00024625,2]
[328722696,1717731039830,-500.0,0.00024625,2]
[328722698,1717731039841,-500.0,0.00024625,2]
[328722700,1717731039851,-500.0,0.00024625,2]
[328722702,1717731039861,-289.60248008,0.00024625,2]
[328722704,1717731039871,-500.0,0.00024625,2]
[328722706,1717731039881,-500.0,0.00024625,2]
[328722708,1717731039892,-500.0,0.00024625,2]
[328722710,1717731039902,-500.0,0.00024625,2]
[328722712,1717731039912,-500.0,0.00024625,2]
[328722714,1717731039922,-500.0,0.00024625,2]
[328722716,1717731039932,-500.0,0.00024625,2]
[328722718,1717731039943,-500.0,0.00024625,2]
[328722720,1717731039953,-500.0,0.00024625,2]
[328722722,1717731039963,-500.0,0.00024625,2]
[328722724,1717731039973,-500.0,0.00024625,2]
[328722726,1717731039984,-500.0,0.00024625,2]
[328722728,1717731039994,-500.0,0.00024625,2]
[328722730,1717731040005,-500.0,0.00024625,2]
[328722732,1717731040015,-500.0,0.00024625,2]
[328722734,1717731040025,-500.0,0.00024625,2]
[328722736,1717731040035,-500.0,0.00024625,2]
[328722738,1717731040045,-206.49624871,0.00024625,2]
[328722740,1717731040055,-500.0,0.00024625,2]
[328722742,1717731040065,-500.0,0.00024625,2]
[328722744,1717731040075,-500.0,0.00024625,2]
[328722746,1717731040085,-500.0,0.00024625,2]
[328722748,1717731040096,-500.0,0.00024625,2]
[328722750,1717731040106,-310.173318,0.00024626,2]
[328722752,1717731040117,-151.0,0.00024626,2]
[328722754,1717731040127,-310.173318,0.00024626,2]
[328722756,1717731040137,-151.0,0.00024626,2]
[328722758,1717731040147,-310.173318,0.00024626,2]
[328722760,1717731040157,-151.0,0.00024626,2]
[328722762,1717731040166,-310.173318,0.00024626,2]
[328722764,1717731040176,-151.0,0.00024626,2]
[328722765,1717731040186,-310.173318,0.00024626,2]
[328722766,1717731040195,-310.173318,0.00024626,2]
[328722767,1717731040207,-310.173318,0.00024626,2]
[328722768,1717731040217,-310.173318,0.00024626,2]
[328722769,1717731040227,-151.0,0.00024626,2]
[328722770,1717731040237,-151.0,0.00024626,2]
[328722771,1717731040248,-154.14369,0.00024626,2]
[328722772,1717731040257,-151.0,0.00024626,2]
[328722773,1717731040268,-151.0,0.00024626,2]
[328722774,1717731040278,-151.0,0.00024626,2]
[328722775,1717731040288,-151.0,0.00024626,2]
[328722776,1717731040298,-559.98331,0.00024626,2]
[328722777,1717731040309,-559.98331,0.00024626,2]
[328722778,1717731040319,-559.98331,0.00024626,2]
[328722779,1717731040329,-559.98331,0.00024626,2]
[328722780,1717731040338,-559.98331,0.00024626,2]
[328722781,1717731040347,-559.98331,0.00024626,2]
[328722782,1717731040358,-559.98331,0.00024626,2]
[328722783,1717731040368,-559.98331,0.00024626,2]
[328722784,1717731040378,-151.0,0.00024626,2]
[328722785,1717731040390,-151.0,0.00024626,2]
[328722786,1717731040400,-151.0,0.00024626,2]
[328722787,1717731040411,-151.0,0.00024626,2]
[328722788,1717731040422,-151.0,0.00024626,2]
[328722789,1717731040432,-184.345285,0.00024626,2]
[328722790,1717731040442,-184.345285,0.00024626,2]
[328722791,1717731040453,-151.0,0.00024626,2]
[328722792,1717731040463,-184.345285,0.00024626,2]
[328722793,1717731040472,-197.593192,0.00024626,2]
[328722794,1717731040482,-184.345285,0.00024626,2]
[328722795,1717731040492,-184.345285,0.00024626,2]
[328722796,1717731040502,-184.345285,0.00024626,2]
[328722797,1717731040512,-184.345285,0.00024626,2]
[328722798,1717731040522,-151.0,0.00024627,2]
[328722799,1717731040532,-1022.254706,0.00024627,2]
[328722800,1717731040542,-1022.254706,0.00024627,2]
[328722801,1717731040552,-221.203048,0.00024627,2]
[328722802,1717731040562,-221.203048,0.00024627,2]
[328722803,1717731040572,-221.203048,0.00024627,2]
[328722804,1717731040582,-221.203048,0.00024627,2]
[328722805,1717731040593,-221.203048,0.00024627,2]
[328722806,1717731040602,-221.203048,0.00024627,2]
[328722807,1717731040613,-221.203048,0.00024627,2]
[328722808,1717731040623,-221.203048,0.00024627,2]
[328722809,1717731040633,-235.45733699,0.00024628,7]
[328722810,1717731040644,-151.0,0.00024628,2]
[328722811,1717731040654,-235.905429,0.00024628,2]
[328722812,1717731040664,-151.0,0.00024628,2]
[328722813,1717731040675,-151.0,0.00024628,2]
[328722815,1717731040685,-151.0,0.00024628,2]
[328722817,1717731040695,-151.0,0.00024628,2]
[328722819,1717731040706,-151.0,0.00024628,2]
[328722820,1717731040715,-151.0,0.00024628,2]
[328722822,1717731040725,-215.918585,0.00024628,2]
[328722824,1717731040735,-151.0,0.00024628,2]
[328722827,1717731040749,-151.0,0.00024628,2]
[328722829,1717731040759,-792.653307,0.00024628,2]
[328722830,1717731040770,-792.653307,0.00024628,2]
[328722832,1717731040781,-792.653307,0.00024628,2]
[328722835,1717731040791,-792.653307,0.00024628,2]
[328722836,1717731040802,-151.0,0.00024628,2]
[328722850,1717731040940,-1022.254706,0.00024628,2]
[328722852,1717731040950,-1022.254706,0.00024628,2]
[328722855,1717731040962,-221.203048,0.00024628,2]
[328722856,1717731040974,-221.203048,0.00024628,2]
[328722858,1717731040984,-310.173318,0.00024628,2]
[328722860,1717731040993,-151.0,0.00024628,2]
[328722862,1717731041004,-310.173318,0.00024628,2]
[328722864,1717731041013,-151.0,0.00024628,2]
[328722866,1717731041022,-559.98331,0.00024628,2]
[328722868,1717731041033,-559.98331,0.00024628,2]
[328722870,1717731041042,-151.0,0.00024628,2]
[328722872,1717731041052,-184.345285,0.00024628,2]
[328722874,1717731041062,-151.0,0.00024629,2]
[328722876,1717731041072,-151.0,0.00024629,2]
[328722878,1717731041082,-151.0,0.00024629,2]
[328722881,1717731041093,-151.0,0.00024629,2]
[328722882,1717731041103,-310.173318,0.0002463,2]
[328722884,1717731041113,-151.0,0.0002463,2]
[328722886,1717731041122,-310.173318,0.0002463,2]
[328722889,1717731041132,-151.0,0.0002463,2]
[328722890,1717731041141,-559.98331,0.0002463,2]
[328722892,1717731041151,-559.98331,0.0002463,2]
[328722894,1717731041161,-1831.15657956,0.0002463,2]
[328722896,1717731041171,-1000.0,0.00024633,2]
[328722898,1717731041180,-221.203048,0.00024633,2]
[328722900,1717731041190,-221.203048,0.00024633,2]
[328722902,1717731041199,-151.0,0.00024633,2]
[328722904,1717731041210,-184.345285,0.00024633,2]
[328722906,1717731041219,-1000.0,0.00024637,2]
[328722908,1717731041229,-1000.0,0.00024645,2]
[328722910,1717731041239,-1287.86123079,0.00024648,4]
[328722912,1717731041248,-151.0,0.00024651,2]
[328722914,1717731041257,-151.0,0.00024651,2]
[328722916,1717731041267,-205.295265,0.00024652,2]
[328722918,1717731041277,-205.295265,0.00024652,2]
[328722920,1717731041286,-151.0,0.00024653,2]
[328722922,1717731041296,-151.0,0.00024653,2]
[328722924,1717731041306,-155.79903,0.00024653,2]
[328722926,1717731041316,-792.653307,0.00024653,2]
[328722928,1717731041325,-792.653307,0.00024653,2]
[328722930,1717731041335,-151.0,0.00024654,2]
[328722932,1717731041344,-152.443719,0.00024654,2]
[328722934,1717731041354,-205.295265,0.00024654,2]
[328722936,1717731041364,-205.295265,0.00024654,2]
[328722938,1717731041374,-151.0,0.00024654,2]
[328722940,1717731041383,-1022.254706,0.00024654,2]
[328722942,1717731041393,-1022.254706,0.00024654,2]
[328722944,1717731041403,-221.203048,0.00024654,2]
[328722946,1717731041413,-221.203047,0.00024654,2]
[328722948,1717731041422,-310.173318,0.00024654,2]
[328722950,1717731041433,-151.0,0.00024654,2]
[328722952,1717731041443,-310.173318,0.00024654,2]
[328722954,1717731041453,-151.0,0.00024654,2]
[328722956,1717731041463,-559.98331,0.00024654,2]
[328722958,1717731041473,-559.98331,0.00024654,2]
[328722960,1717731041483,-151.0,0.00024654,2]
[328722962,1717731041492,-184.345285,0.00024654,2]
[328722964,1717731041502,-14381.26250669,0.00024655,7]
[328722966,1717731041512,-211.567107,0.00024655,2]
[328722968,1717731041522,-155.22240851,0.00024655,2]
[328722970,1717731041532,-155.36181763,0.00024655,2]
[328722972,1717731041541,-228.69219822,0.00024655,2]
[328722974,1717731041551,-215.73982768,0.00024655,2]
[328722976,1717731041560,-383.71567951,0.00024655,2]
[328722978,1717731041570,-154.93802479,0.00024655,2]
[328722980,1717731041579,-159.06409873,0.00024655,2]
[328722982,1717731041589,-239.10560139,0.00024655,2]
[328722984,1717731041599,-155.89606438,0.00024655,2]
[328722987,1717731041608,-155.19856564,0.00024655,2]
[328722989,1717731041618,-155.23874539,0.00024655,2]
[328722991,1717731041628,-155.29705497,0.00024655,2]
[328722993,1717731041638,-344.51381745,0.00024655,2]
[328722995,1717731041648,-273.02093847,0.00024655,2]
[328722997,1717731041659,-436.8357449,0.00024655,2]
[328722999,1717731041669,-298.49014079,0.00024655,2]
[328723001,1717731041678,-155.09045525,0.00024655,2]
[328723003,1717731041688,-399.73393008,0.00024655,2]
[328723005,1717731041697,-204.63830293,0.00024655,2]
[328723007,1717731041707,-156.46730965,0.00024655,2]
[328723009,1717731041716,-553.40454948,0.00024655,2]
[328723011,1717731041726,-155.58489888,0.00024655,2]
[328723013,1717731041736,-16091.80626564,0.00024655,2]
[328723015,1717731041749,-217.36113758,0.00024655,2]
[328723017,1717731041759,-405.81828468,0.00024655,2]
[328723019,1717731041768,-157.94054367,0.00024655,2]
[328723021,1717731041779,-929.94000726,0.00024655,2]
[328723023,1717731041788,-304.93668247,0.00024655,2]
[328723024,1717731041798,-155.40686788,0.00024655,2]
[328723025,1717731041807,-163.67137052,0.00024655,2]
[328723026,1717731041816,-158.36548479,0.00024655,2]
[328723027,1717731041827,-191.42176479,0.00024655,2]
[328723029,1717731041838,-282.35226085,0.00024655,2]
[328723031,1717731041848,-655.34935627,0.00024655,2]
[328723033,1717731041859,-208.75725212,0.00024655,2]
[328723035,1717731041869,-157.11236034,0.00024655,2]
[328723037,1717731041879,-156.24396509,0.00024655,2]
[328723039,1717731041889,-188.91891942,0.00024655,2]
[328723041,1717731041899,-1100.10114648,0.00024655,2]
[328723043,1717731041909,-166.05663406,0.00024655,2]
[328723045,1717731041920,-208.49748452,0.00024655,2]
[328723047,1717731041930,-240.91940202,0.00024655,2]
[328723049,1717731041941,-261.78515998,0.00024655,2]
[328723051,1717731041951,-156.02510313,0.00024655,2]
[328723052,1717731041964,-157.30966414,0.00024655,2]
[328723054,1717731041973,-1490.92648031,0.00024655,2]
[328723056,1717731041983,-151.0,0.00024655,2]
[328723057,1717731041993,-151.0,0.00024655,2]
[328723058,1717731042002,-151.0,0.00024655,2]
[328723059,1717731042012,-216.785516,0.00024655,2]
[328723060,1717731042021,-151.0,0.00024655,2]
[328723061,1717731042031,-151.0,0.00024655,2]
[328723062,1717731042041,-1342.56735164,0.00024655,2]
[328723063,1717731042051,-151.0,0.00024655,2]
[328723064,1717731042061,-151.0,0.00024655,2]
[328723065,1717731042070,-151.0,0.00024655,2]
[328723066,1717731042080,-151.0,0.00024655,2]
[328723067,1717731042090,-151.0,0.00024655,2]
[328723068,1717731042100,-151.0,0.00024655,2]
[328723069,1717731042110,-205.295265,0.00024655,2]
[328723070,1717731042120,-205.295265,0.00024655,2]
[328723071,1717731042129,-205.295265,0.00024655,2]
[328723072,1717731042139,-205.295265,0.00024655,2]
[328723073,1717731042149,-205.295265,0.00024655,2]
[328723074,1717731042159,-205.295265,0.00024655,2]
[328723075,1717731042168,-151.0,0.00024655,2]
[328723076,1717731042178,-151.0,0.00024655,2]
[328723077,1717731042188,-151.0,0.00024655,2]
[328723078,1717731042198,-151.0,0.00024655,2]
[328723079,1717731042210,-151.0,0.00024655,2]
[328723080,1717731042219,-161.57823,0.00024655,2]
[328723081,1717731042229,-792.653307,0.00024655,2]
[328723082,1717731042239,-792.653307,0.00024655,2]
[328723083,1717731042249,-792.653307,0.00024655,2]
[328723084,1717731042258,-792.653307,0.00024655,2]
[328723085,1717731042268,-792.653307,0.00024655,2]
[328723086,1717731042278,-792.653307,0.00024655,2]
[328723087,1717731042288,-175.23636959,0.00024655,2]
[328723088,1717731042297,-164.36282827,0.00024655,2]
[328723089,1717731042307,-296.98441853,0.00024655,2]
[328723090,1717731042317,-155.6306488,0.00024655,2]
[328723091,1717731042326,-1022.254706,0.00024655,2]
[328723092,1717731042335,-1022.254706,0.00024655,2]
[328723093,1717731042344,-1022.254706,0.00024655,2]
[328723094,1717731042354,-1022.254706,0.00024655,2]
[328723095,1717731042363,-1022.254706,0.00024655,2]
[328723097,1717731042373,-1022.254706,0.00024655,2]
[328723099,1717731042382,-191.47318765,0.00024655,2]
[328723101,1717731042391,-458.16472486,0.00024655,2]
[328723103,1717731042401,-512.68083099,0.00024655,2]
[328723105,1717731042411,-1357.85322845,0.00024655,2]
[328723107,1717731042421,-295.59507985,0.00024655,2]
[328723108,1717731042430,-310.173318,0.00024655,2]
[328723109,1717731042440,-156.244604,0.00024655,2]
[328723110,1717731042450,-310.173318,0.00024655,2]
[328723111,1717731042461,-310.173318,0.00024655,2]
[328723112,1717731042470,-310.173318,0.00024655,2]
[328723113,1717731042479,-310.173318,0.00024655,2]
[328723114,1717731042488,-310.173326,0.00024655,2]
[328723115,1717731042498,-249.290832,0.00024655,2]
[328723116,1717731042508,-559.98331,0.00024655,2]
[328723117,1717731042517,-559.98331,0.00024655,2]
[328723118,1717731042527,-559.98331,0.00024655,2]
[328723119,1717731042537,-559.98331,0.00024655,2]
[328723120,1717731042547,-559.98331,0.00024655,2]
[328723121,1717731042557,-559.983303,0.00024655,2]
[328723122,1717731042567,-151.0,0.00024655,2]
[328723123,1717731042576,-151.0,0.00024655,2]
[328723124,1717731042587,-151.0,0.00024655,2]
[328723125,1717731042597,-184.345285,0.00024655,2]
[328723126,1717731042607,-184.345285,0.00024655,2]
[328723127,1717731042617,-184.345285,0.00024655,2]
[328723128,1717731042627,-28165.50520016,0.00024656,2]
[328723129,1717731042636,-709.95133369,0.00024656,2]
[328723130,1717731042646,-227.12347,0.00024656,2]
[328723131,1717731042656,-206.417553,0.00024656,2]
[328723132,1717731042666,-3000.0,0.00024656,2]
[328723133,1717731042676,-606.47049813,0.00024656,2]
[328723134,1717731042686,-153.594412,0.00024656,2]
[328723135,1717731042696,-151.0,0.00024656,2]
[328723136,1717731042707,-205.295265,0.00024656,2]
[328723137,1717731042717,-205.295265,0.00024656,2]
[328723138,1717731042726,-151.0,0.00024656,2]
[328723139,1717731042737,-151.0,0.00024656,2]
[328723140,1717731042748,-151.0,0.00024656,2]
[328723141,1717731042758,-792.653307,0.00024656,2]
[328723142,1717731042768,-792.653307,0.00024656,2]
[328723143,1717731042778,-1022.254706,0.00024656,2]
[328723144,1717731042789,-1022.254706,0.00024656,2]
[328723145,1717731042800,-500.0,0.00024657,2]
[328723146,1717731042811,-500.0,0.00024657,2]
[328723147,1717731042823,-500.0,0.00024657,2]
[328723148,1717731042833,-500.0,0.00024657,2]
[328723149,1717731042843,-500.0,0.00024657,2]
[328723150,1717731042854,-500.0,0.00024657,2]
[328723151,1717731042864,-500.0,0.00024657,2]
[328723152,1717731042874,-500.90964191,0.00024657,2]
[328723153,1717731042885,-500.0,0.00024657,2]
[328723154,1717731042895,-503.13830391,0.00024657,2]
[328723155,1717731042905,-502.51662156,0.00024657,2]
[328723156,1717731042915,-500.0,0.00024657,2]
[328723157,1717731042924,-500.734767,0.00024657,2]
[328723158,1717731042934,-504.06588004,0.00024657,2]
[328723159,1717731042944,-500.0,0.00024657,2]
[328723160,1717731042953,-500.0,0.00024657,2]
[328723161,1717731042964,-500.0,0.00024657,2]
[328723162,1717731042975,-447.64738804,0.00024657,2]
[328723163,1717731042984,-500.0,0.00024657,2]
[328723164,1717731042994,-596.34228879,0.00024657,2]
[328723165,1717731043004,-504.17536656,0.00024657,2]
[328723166,1717731043014,-500.0,0.00024657,2]
[328723167,1717731043023,-506.75085489,0.00024657,2]
[328723168,1717731043034,-608.70364526,0.00024657,2]
[328723170,1717731043044,-500.0,0.00024657,2]
[328723172,1717731043054,-511.89003149,0.00024657,2]
[328723174,1717731043064,-510.5646425,0.00024657,2]
[328723176,1717731043073,-504.84159733,0.00024657,2]
[328723178,1717731043084,-234.36073632,0.00024657,2]
[328723181,1717731043102,-265.63926368,0.00024657,2]
[328723183,1717731043112,-500.0,0.00024657,2]
[328723185,1717731043123,-500.0,0.00024657,2]
[328723187,1717731043133,-500.0,0.00024657,2]
[328723189,1717731043143,-541.52715817,0.00024657,2]
[328723191,1717731043153,-506.4225871,0.00024657,2]
[328723193,1717731043162,-500.0,0.00024657,2]
[328723195,1717731043172,-156.23356153,0.00024657,2]
[328723197,1717731043181,-500.0,0.00024657,2]
[328723198,1717731043191,-505.00212445,0.00024657,2]
[328723200,1717731043201,-509.06597321,0.00024657,2]
[328723202,1717731043211,-505.64296029,0.00024657,2]
[328723204,1717731043220,-500.0,0.00024657,2]
[328723206,1717731043229,-500.0,0.00024657,2]
[328723208,1717731043239,-200.0,0.00024657,2]
[328723210,1717731043249,-525.66,0.00024657,2]
[328723212,1717731043258,-612.62683635,0.00024657,2]
[328723214,1717731043267,-500.0,0.00024657,2]
[328723216,1717731043278,-517.23828664,0.00024657,2]
[328723218,1717731043287,-507.10613049,0.00024657,2]
[328723220,1717731043297,-500.0,0.00024657,2]
[328723222,1717731043307,-502.14466369,0.00024657,2]
[328723224,1717731043316,-501.18133634,0.00024657,2]
[328723226,1717731043326,-500.0,0.00024657,2]
[328723228,1717731043336,-500.0,0.00024657,2]
[328723230,1717731043347,-500.0,0.00024657,2]
[328723232,1717731043356,-500.0,0.00024657,2]
[328723234,1717731043366,-500.0,0.00024657,2]
[328723236,1717731043375,-500.0,0.00024657,2]
[328723238,1717731043385,-500.0,0.00024657,2]
[328723240,1717731043394,-848.55,0.00024657,2]
[328723242,1717731043404,-500.0,0.00024657,2]
[328723244,1717731043413,-500.0,0.00024657,2]
[328723246,1717731043423,-500.0,0.00024657,2]
[328723248,1717731043433,-504.00406171,0.00024657,2]
[328723250,1717731043442,-503.65074123,0.00024657,2]
[328723252,1717731043452,-500.0,0.00024657,2]
[328723254,1717731043462,-502.73184948,0.00024657,2]
[328723256,1717731043472,-500.0,0.00024657,2]
[328723258,1717731043482,-500.0,0.00024657,2]
[328723260,1717731043492,-509.9878444,0.00024657,2]
[328723261,1717731043501,-500.0,0.00024657,2]
[328723263,1717731043511,-506.05639793,0.00024657,2]
[328723265,1717731043521,-500.0,0.00024657,2]
[328723267,1717731043531,-513.32958627,0.00024657,2]
[328723269,1717731043541,-511.52333829,0.00024657,2]
[328723271,1717731043551,-500.0,0.00024657,2]
[328723273,1717731043560,-500.0,0.00024657,2]
[328723274,1717731043570,-791.41,0.00024657,2]
[328723276,1717731043579,-500.0,0.00024657,2]
[328723277,1717731043589,-500.0,0.00024657,2]
[328723278,1717731043599,-500.0,0.00024657,2]
[328723279,1717731043608,-500.0,0.00024657,2]
[328723280,1717731043618,-500.0,0.00024657,2]
[328723281,1717731043627,-500.0,0.00024657,2]
[328723282,1717731043637,-512.12683543,0.00024657,2]
[328723283,1717731043647,-500.0,0.00024657,2]
[328723284,1717731043656,-611.08435598,0.00024657,2]
[328723285,1717731043666,-500.0,0.00024657,2]
[328723286,1717731043675,-500.0,0.00024657,2]
[328723287,1717731043685,-500.0,0.00024657,2]
[328723288,1717731043695,-636.52087954,0.00024657,2]
[328723289,1717731043704,-546.8945871,0.00024657,2]
[328723290,1717731043714,-500.0,0.00024657,2]
[328723291,1717731043723,-503.43215516,0.00024657,2]
[328723292,1717731043836,-500.0,0.00024657,2]
[328723293,1717731043847,-500.0,0.00024657,2]
[328723294,1717731043857,-500.0,0.00024657,2]
[328723296,1717731043867,-500.0,0.00024657,2]
[328723297,1717731043876,-500.0,0.00024657,2]
[328723299,1717731043886,-500.0,0.00024657,2]
[328723300,1717731043896,-503.36919898,0.00024657,2]
[328723301,1717731043906,-500.0,0.00024657,2]
[328723302,1717731043916,-512.80049293,0.00024657,2]
[328723303,1717731043926,-500.0,0.00024657,2]